bitfinex-derivatives/quotes_BTCF0:USTF0_20260131
["timestamp","ask_amount","ask_price","bid_price","bid_amount"]
[1769882618050,0.28377537,78918.0,78886.0,0.28820193]
[1769882618759,0.28377537,78916.0,78886.0,0.28820193]
[1769882618959,0.28377537,78916.0,78886.0,0.28920193]
[1769882619360,0.1267411,78915.0,78886.0,0.28920193]
[1769882619562,0.27446737,78914.0,78886.0,0.001]
[1769882619762,8.945e-05,78913.0,78886.0,0.001]
[1769882619965,8.945e-05,78913.0,78887.0,0.28820193]
[1769882620161,0.012688,78935.0,78891.0,0.28820193]
[1769882620360,0.012688,78933.0,78891.0,0.28820193]
[1769882620564,0.12674351,78928.0,78891.0,0.28820193]
[1769882620760,0.09132,78932.0,78891.0,0.28820193]
[1769882620966,0.12674351,78931.0,78893.0,0.28820193]
[1769882621359,0.09132,78932.0,78885.0,0.09132]
[1769882621360,0.01269,78920.0,78885.0,0.09132]
[1769882621656,0.29128365,78923.0,78886.0,0.27659529]
[1769882622065,0.12672424,78922.0,78886.0,0.27659529]
[1769882622266,0.29128365,78921.0,78886.0,0.27659529]
[1769882622856,0.12673548,78920.0,78886.0,0.27659529]
[1769882623266,0.33416,78926.0,78886.0,0.27659529]
[1769882623466,0.33416,78926.0,78888.0,0.27659529]
[1769882623668,0.12673709,78925.0,78890.0,0.27659529]
[1769882623967,0.12673709,78925.0,78892.0,0.27659529]
[1769882624264,0.09136,78942.0,78901.0,0.27659529]
[1769882624464,0.09136,78942.0,78904.0,0.27659529]
[1769882625267,0.30397165,78934.0,78904.0,0.27659529]
[1769882625470,0.346887,78940.0,78904.0,0.27659529]
[1769882625768,0.29128365,78939.0,78904.0,0.27659529]
[1769882626066,0.29128365,78938.0,78904.0,0.27659529]
[1769882626270,0.30397065,78937.0,78904.0,0.27659529]
[1769882626469,0.30397065,78937.0,78902.0,0.09136]
[1769882626664,0.30397165,78935.0,78902.0,0.09136]
[1769882627269,0.29128365,78933.0,78902.0,0.09136]
[1769882627874,0.29128365,78931.0,78902.0,0.09136]
[1769882628170,0.29128365,78929.0,78902.0,0.09136]
[1769882628959,0.1267146,78928.0,78902.0,0.09136]
[1769882629166,0.29128365,78926.0,78902.0,0.09136]
[1769882629366,0.38264365,78925.0,78902.0,0.09136]
[1769882629766,0.12671781,78924.0,78902.0,0.09136]
[1769882629967,0.12671781,78924.0,78903.0,0.27659529]
[1769882630271,0.29128365,78934.0,78903.0,0.27659529]
[1769882630670,0.12672183,78923.0,78903.0,0.27659529]
[1769882630872,0.001,78929.0,78903.0,0.27659529]
[1769882631173,0.12672183,78922.0,78902.0,0.09136]
[1769882631363,0.29128365,78929.0,78902.0,0.09136]
[1769882631769,0.12671701,78928.0,78903.0,0.27659529]
[1769882632169,0.001,78934.0,78903.0,0.27659529]
[1769882632469,0.12671781,78933.0,78903.0,0.27659529]
[1769882632974,0.001,78922.0,78903.0,0.27659529]
[1769882633473,0.29228365,78922.0,78902.0,0.09136]
[1769882633673,0.001,78922.0,78902.0,0.09136]
[1769882634473,0.30397265,78931.0,78902.0,0.09136]
[1769882634776,0.29128365,78929.0,78902.0,0.09136]
[1769882635270,0.29128365,78926.0,78902.0,0.09136]
[1769882635470,0.001,78922.0,78902.0,0.09136]
[1769882635771,0.01269,78920.0,78902.0,0.09136]
[1769882636067,0.12671781,78921.0,78902.0,0.09136]
[1769882636271,0.29128365,78930.0,78902.0,0.09136]
[1769882636467,0.12672504,78920.0,78902.0,0.09136]
[1769882636768,0.30397265,78925.0,78892.0,0.09136]
[1769882636975,0.12672504,78919.0,78893.0,0.27659529]
[1769882637167,0.012689,78931.0,78893.0,0.27659529]
[1769882637372,0.38264365,78935.0,78895.0,0.27659529]
[1769882637572,0.12672905,78931.0,78895.0,0.27659529]
[1769882637774,0.29128365,78928.0,78892.0,0.09136]
[1769882637977,0.29128365,78926.0,78892.0,0.09136]
[1769882638170,0.29128365,78915.0,78892.0,0.09136]
[1769882638365,0.01269,78920.0,78892.0,0.09136]
[1769882638575,0.12672665,78914.0,78892.0,0.09136]
[1769882638768,0.01269,78920.0,78892.0,0.09136]
[1769882638975,0.012691,78916.0,78892.0,0.09136]
[1769882639477,0.26928365,78917.0,78892.0,0.09136]
[1769882639478,0.012692,78912.0,78892.0,0.09136]
[1769882640065,0.12673307,78911.0,78892.0,0.09136]
[1769882640573,0.12673307,78911.0,78876.0,0.27659529]
[1769882640872,0.41801672,78911.0,78876.0,0.26659529]
[1769882641975,0.29128365,78906.0,78876.0,0.26659529]
[1769882642278,0.29128365,78895.0,78873.0,0.09136]
[1769882642470,0.09136,78901.0,78873.0,0.09136]
[1769882642972,0.09136,78901.0,78874.0,0.27659529]
[1769882643367,0.12675315,78900.0,78874.0,0.27659529]
[1769882643575,0.29128365,78911.0,78874.0,0.27659529]
[1769882643775,0.29128365,78907.0,78874.0,0.27659529]
[1769882643975,0.38264365,78907.0,78874.0,0.27659529]
[1769882644171,0.29128365,78906.0,78874.0,0.27659529]
[1769882644476,0.41804162,78906.0,78874.0,0.27659529]
[1769882644672,0.30397665,78905.0,78874.0,0.27659529]
[1769882644873,0.30397665,78905.0,78876.0,0.001]
[1769882645374,0.29128365,78897.0,78876.0,0.001]
[1769882645577,0.29128365,78883.0,78858.0,0.09136]
[1769882645977,0.12675797,78882.0,78858.0,0.09136]
[1769882646273,0.09136,78887.0,78859.0,0.27659529]
[1769882646671,0.12679011,78883.0,78859.0,0.27659529]
[1769882646872,0.33424,78891.0,78859.0,0.27659529]
[1769882646873,0.27034525,78909.0,78859.0,0.28929529]
[1769882647173,0.09136,78908.0,78869.0,0.29520816]
[1769882647375,0.09136,78908.0,78873.0,0.29520816]
[1769882647672,0.09136,78908.0,78875.0,0.29520816]
[1769882647878,0.12676841,78907.0,78875.0,0.29520816]
[1769882648379,0.12676841,78907.0,78878.0,0.29520816]
[1769882648572,0.09136,78913.0,78878.0,0.29520816]
[1769882648973,0.12675717,78917.0,78878.0,0.29520816]
[1769882649177,0.09136,78916.0,78878.0,0.29520816]
[1769882649377,0.09136,78916.0,78880.0,0.012697]
[1769882649578,0.09136,78916.0,78883.0,0.29520816]
[1769882649772,0.01269,78922.0,78883.0,0.29520816]
[1769882649969,0.10405,78922.0,78883.0,0.29520816]
[1769882650174,0.27034525,78917.0,78876.0,0.012697]
[1769882650374,0.27034525,78915.0,78877.0,0.29520816]
[1769882650576,0.09136,78922.0,78874.0,0.09136]
[1769882650577,0.28303725,78907.0,78874.0,0.09136]
[1769882650871,0.28303925,78896.0,78874.0,0.09136]
[1769882651277,0.012693,78903.0,78875.0,0.29520816]
[1769882651477,0.27034525,78908.0,78875.0,0.29520816]
[1769882651778,0.27034525,78899.0,78874.0,0.09136]
[1769882652175,0.27034525,78897.0,78874.0,0.09136]
[1769882652768,0.27034525,78897.0,78856.0,0.38656816]
[1769882652769,0.28303925,78895.0,78856.0,0.38656816]
[1769882652972,0.27034525,78893.0,78857.0,0.29520816]
[1769882653374,0.12678208,78892.0,78857.0,0.29520816]
[1769882654575,0.09136,78894.0,78857.0,0.29520816]
[1769882654774,0.12678368,78893.0,78857.0,0.29520816]
[1769882655375,0.27034525,78892.0,78857.0,0.29520816]
[1769882655571,0.27034525,78886.0,78856.0,0.09136]
[1769882655878,0.09136,78894.0,78856.0,0.09136]
[1769882655879,0.27034525,78884.0,78856.0,0.09136]
[1769882656071,0.27034525,78881.0,78856.0,0.09136]
[1769882656275,0.24981125,78902.0,78856.0,0.09136]
[1769882656276,0.27034525,78879.0,78856.0,0.09136]
[1769882656476,0.27034525,78877.0,78856.0,0.09136]
[1769882657069,0.12679092,78876.0,78856.0,0.09136]
[1769882657274,0.27034525,78875.0,78854.0,0.00015181]
[1769882657876,0.12679654,78874.0,78854.0,0.00015181]
[1769882658276,0.27034525,78877.0,78854.0,0.00015181]
[1769882658477,0.12680056,78876.0,78854.0,0.00015181]
[1769882658676,0.012695,78891.0,78854.0,0.29535997]
[1769882658981,0.12680056,78885.0,78854.0,0.29535997]
[1769882659372,0.27034525,78889.0,78854.0,0.29535997]
[1769882659682,0.27034525,78887.0,78854.0,0.29535997]
[1769882659986,0.42572,78890.0,78854.0,0.29535997]
[1769882660179,0.1267869,78886.0,78854.0,0.29535997]
[1769882660483,0.27034525,78887.0,78854.0,0.29535997]
[1769882660679,0.12679011,78885.0,78854.0,0.29535997]
[1769882660880,0.27034525,78887.0,78854.0,0.29535997]
[1769882661080,0.12679011,78886.0,78854.0,0.29535997]
[1769882661478,0.27034525,78887.0,78854.0,0.29535997]
[1769882661678,0.12679011,78886.0,78854.0,0.29535997]
[1769882662077,0.012695,78888.0,78854.0,0.29535997]
[1769882662277,0.12679092,78885.0,78854.0,0.29535997]
[1769882662479,0.12679092,78885.0,78849.0,0.0914]
[1769882662480,0.27034525,78869.0,78849.0,0.0914]
[1769882662777,0.20910049,78870.0,78849.0,4.3e-07]
[1769882662778,0.27034525,78865.0,78849.0,4.3e-07]
[1769882663381,0.0127,78859.0,78828.0,0.0914]
[1769882663684,0.012701,78854.0,78829.0,0.38660816]
[1769882663875,0.012701,78854.0,78830.0,0.0914]
[1769882664073,0.012701,78856.0,78829.0,0.29520816]
[1769882664379,0.27034525,78851.0,78830.0,0.0914]
[1769882664574,0.00013138,78850.0,78826.0,0.0914]
[1769882664780,0.27047663,78850.0,78826.0,0.0914]
[1769882664976,0.27034525,78848.0,78826.0,0.0914]
[1769882665176,0.12683595,78849.0,78826.0,0.0914]
[1769882665177,0.27034525,78841.0,78826.0,0.0914]
[1769882665479,0.00012838,78840.0,78826.0,0.0914]
[1769882665676,0.12697237,78840.0,78826.0,0.0914]
[1769882665880,0.13967537,78840.0,78826.0,0.0914]
[1769882666082,0.12697237,78840.0,78826.0,0.0914]
[1769882666382,0.012702,78846.0,78826.0,0.0914]
[1769882666680,0.012703,78844.0,78826.0,0.0914]
[1769882667279,0.12685043,78843.0,78826.0,0.0914]
[1769882667477,0.012703,78842.0,78826.0,0.0914]
[1769882668084,0.12684721,78841.0,78826.0,0.0914]
[1769882668280,0.27034525,78840.0,78826.0,0.0914]
[1769882668480,0.12684721,78841.0,78826.0,0.0914]
[1769882668783,0.012703,78842.0,78826.0,0.0914]
[1769882668993,0.12684882,78840.0,78826.0,0.38660816]
[1769882669286,0.001,78844.0,78826.0,0.0914]
[1769882670186,0.12685043,78843.0,78826.0,0.0914]
[1769882670584,0.001,78844.0,78827.0,0.29520816]
[1769882670888,0.0127,78859.0,78827.0,0.29520816]
[1769882671184,0.12684721,78858.0,78827.0,0.29520816]
[1769882671592,0.0914,78860.0,78827.0,0.29520816]
[1769882671889,0.12683434,78859.0,78827.0,0.29520816]
[1769882672081,0.0914,78860.0,78827.0,0.29520816]
[1769882672277,0.12683434,78858.0,78827.0,0.29520816]
[1769882672680,0.0914,78860.0,78827.0,0.29520816]
[1769882672883,0.012701,78854.0,78827.0,0.29520816]
[1769882673489,0.12683836,78853.0,78827.0,0.29520816]
[1769882673682,0.012701,78852.0,78827.0,0.29520816]
[1769882673886,0.012701,78852.0,78826.0,0.0914]
[1769882674192,0.28304725,78848.0,78826.0,0.0914]
[1769882674586,0.28304725,78848.0,78811.0,0.29520816]
[1769882674790,0.012702,78846.0,78811.0,0.29520816]
[1769882675493,0.12685767,78845.0,78811.0,0.29520816]
[1769882675886,0.28304725,78844.0,78811.0,0.29520816]
[1769882676192,0.012702,78844.0,78811.0,0.29520816]
[1769882676392,0.27034525,78852.0,78811.0,0.29520816]
[1769882676393,0.012702,78850.0,78811.0,0.29520816]
[1769882676590,0.12685928,78843.0,78811.0,0.29520816]
[1769882676788,0.012701,78855.0,78811.0,0.29520816]
[1769882676989,0.29570379,78861.0,78819.0,0.29352514]
[1769882677192,0.012701,78853.0,78819.0,0.29352514]
[1769882677594,0.12683916,78852.0,78819.0,0.29352514]
[1769882677987,0.012702,78849.0,78820.0,0.33452]
[1769882678192,0.12683916,78852.0,78822.0,0.29352514]
[1769882678488,0.0127,78859.0,78822.0,0.29352514]
[1769882678792,0.12684801,78853.0,78822.0,0.29352514]
[1769882679094,0.012699,78864.0,78822.0,0.29352514]
[1769882679291,0.104138,78869.0,78824.0,0.29352514]
[1769882679593,0.12684319,78868.0,78825.0,0.012705]
[1769882679992,0.12684319,78868.0,78825.0,0.13954819]
[1769882680193,0.012699,78867.0,78821.0,0.09144]
[1769882680389,0.0127,78862.0,78821.0,0.09144]
[1769882680696,0.0127,78858.0,78821.0,0.09144]
[1769882681002,0.28300379,78857.0,78821.0,0.09144]
[1769882681287,0.28300379,78856.0,78821.0,0.09144]
[1769882681593,0.28300379,78856.0,78822.0,0.29352514]
[1769882681899,0.12684077,78855.0,78822.0,0.29352514]
[1769882682193,0.0127,78858.0,78822.0,0.29352514]
[1769882682394,0.0127,78858.0,78822.0,0.29347514]
[1769882682595,0.12684158,78854.0,78822.0,0.29347514]
[1769882682899,0.0127,78858.0,78822.0,0.29347514]
[1769882683195,0.12684158,78857.0,78822.0,0.29347514]
[1769882683388,0.0127,78858.0,78822.0,0.29347514]
[1769882683589,0.12683916,78857.0,78822.0,0.29347514]
[1769882683895,0.12683916,78857.0,78822.0,0.30618114]
[1769882684296,0.012699,78863.0,78822.0,0.29347514]
[1769882684597,0.12683997,78863.0,78824.0,0.29782136]
[1769882684797,0.29680732,78864.0,78824.0,0.29782136]
[1769882684987,0.13953897,78863.0,78824.0,0.29782136]
[1769882685187,0.12683997,78863.0,78824.0,0.29782136]
[1769882685495,0.29680732,78864.0,78824.0,0.29782136]
[1769882685898,0.0127,78862.0,78824.0,0.29782136]
[1769882686599,0.0127,78860.0,78824.0,0.29782136]
[1769882686787,0.29680732,78857.0,78824.0,0.29782136]
[1769882687299,0.12683434,78856.0,78824.0,0.29782136]
[1769882687996,0.104139,78863.0,78824.0,0.29782136]
[1769882688587,0.001,78856.0,78824.0,0.29782136]
[1769882689304,0.0127,78862.0,78824.0,0.29782136]
[1769882689691,0.13953916,78862.0,78824.0,0.29782136]
[1769882690099,0.12683916,78862.0,78824.0,0.29782136]
[1769882690290,0.012698,78873.0,78827.0,0.29782136]
[1769882690495,0.012696,78883.0,78838.0,0.29782136]
[1769882690699,0.012695,78890.0,78844.0,0.29782136]
[1769882690995,0.12683434,78885.0,78846.0,0.29782136]
[1769882691204,0.012695,78890.0,78846.0,0.29782136]
[1769882691397,0.12683434,78889.0,78846.0,0.29782136]
[1769882691597,0.012695,78890.0,78846.0,0.29782136]
[1769882691903,0.005,78897.0,78851.0,0.29782136]
[1769882691904,0.12679815,78889.0,78851.0,0.29782136]
[1769882692094,0.012694,78895.0,78851.0,0.29782136]
[1769882692296,0.30950132,78895.0,78851.0,0.29782136]
[1769882692498,0.012695,78893.0,78851.0,0.29782136]
[1769882692792,0.30950232,78888.0,78851.0,0.29782136]
[1769882693403,0.29680732,78880.0,78845.0,0.09144]
[1769882693607,0.29680732,78878.0,78845.0,0.09144]
[1769882693997,0.29680732,78876.0,78845.0,0.09144]
[1769882694601,0.29680732,78874.0,78845.0,0.09144]
[1769882695300,0.29680732,78872.0,78845.0,0.09144]
[1769882695909,0.29680732,78870.0,78845.0,0.09144]
[1769882696506,0.12681101,78869.0,78846.0,0.29782136]
[1769882697003,0.29680732,78872.0,78846.0,0.29782136]
[1769882697308,0.29680732,78872.0,78845.0,0.09144]
[1769882697309,0.29680732,78870.0,78845.0,0.09144]
[1769882697800,0.1268086,78869.0,78845.0,0.09144]
[1769882698398,0.012695,78890.0,78846.0,0.29782136]
[1769882698602,0.001,78870.0,78846.0,0.29782136]
[1769882698804,0.001,78870.0,78845.0,0.104142]
[1769882698805,0.12681182,78887.0,78848.0,0.29782136]
[1769882699000,0.30950132,78896.0,78848.0,0.29782136]
[1769882699404,0.12681182,78895.0,78848.0,0.29782136]
[1769882699607,0.001,78890.0,78850.0,0.29782136]
[1769882700109,0.001,78890.0,78853.0,0.012701]
[1769882700306,0.001,78890.0,78854.0,0.29782136]
[1769882700499,0.012692,78907.0,78860.0,0.29782136]
[1769882700703,0.012692,78907.0,78865.0,0.29782136]
[1769882700902,0.13948292,78907.0,78867.0,0.29782136]
[1769882701103,0.012692,78911.0,78867.0,0.29782136]
[1769882701397,0.12679092,78906.0,78870.0,0.29782136]
[1769882701602,0.30640785,78934.0,78861.0,0.09144]
[1769882701603,0.24981125,78936.0,78878.0,0.29782136]
[1769882701801,0.24981125,78936.0,78868.0,0.27354018]
[1769882701802,0.012688,78936.0,78887.0,0.29782136]
[1769882702006,0.12676359,78924.0,78887.0,0.29782136]
[1769882702206,0.29680732,78941.0,78891.0,0.29782136]
[1769882702509,0.12673387,78938.0,78894.0,0.29782136]
[1769882702711,0.12673387,78938.0,78896.0,0.29782136]
[1769882702910,0.29680732,78941.0,78899.0,0.29782136]
[1769882703106,0.012686,78949.0,78900.0,0.012693]
[1769882703300,0.30640785,78967.0,78897.0,0.46117387]
[1769882703301,0.12673387,78940.0,78906.0,0.29782136]
[1769882703507,0.29680732,78964.0,78908.0,0.29782136]
[1769882703806,0.12671059,78966.0,78920.0,0.29782136]
[1769882704005,0.12671059,78966.0,78928.0,0.29782136]
[1769882704213,0.012682,78973.0,78930.0,0.29782136]
[1769882704505,0.12666725,78978.0,78934.0,0.29782136]
[1769882704907,0.0914,78984.0,78934.0,0.29782136]
[1769882705104,0.012681,78976.0,78934.0,0.29782136]
[1769882705412,0.012683,78962.0,78929.0,0.0914]
[1769882705621,0.29680732,78956.0,78920.0,0.29782136]
[1769882705806,0.29680732,78941.0,78914.0,0.0914]
[1769882706112,0.29680732,78939.0,78908.0,0.38922136]
[1769882706311,0.29680732,78939.0,78909.0,0.0914]
[1769882706503,0.30949232,78955.0,78910.0,0.29782136]
[1769882706911,0.28401143,78946.0,78910.0,0.29782136]
[1769882707316,0.28401143,78944.0,78910.0,0.29782136]
[1769882707513,0.0914,78943.0,78910.0,0.29782136]
[1769882707716,0.00015358,78945.0,78910.0,0.29782136]
[1769882707912,0.00015358,78945.0,78911.0,0.012692]
[1769882708111,0.0914,78985.0,78911.0,0.012692]
[1769882708112,0.28401143,78976.0,78924.0,0.28727931]
[1769882708318,0.28401143,78976.0,78928.0,0.28727931]
[1769882708513,0.12669774,78969.0,78928.0,0.28727931]
[1769882708707,0.0914,78977.0,78933.0,0.28727931]
[1769882708911,0.28401143,78976.0,78935.0,0.28727931]
[1769882709116,0.001,78955.0,78935.0,0.28727931]
[1769882709512,0.0914,78977.0,78935.0,0.28727931]
[1769882709911,0.12667046,78976.0,78935.0,0.28727931]
[1769882710717,0.12667046,78976.0,78937.0,0.28727931]
[1769882710918,0.28401143,78975.0,78937.0,0.28727931]
[1769882711316,0.28401143,78984.0,78939.0,0.28727931]
[1769882711514,0.28401143,78984.0,78941.0,0.28727931]
[1769882711713,0.12665281,78978.0,78943.0,0.28727931]
[1769882711917,0.28401143,78984.0,78943.0,0.28727931]
[1769882712415,0.12665281,78983.0,78943.0,0.28727931]
[1769882712612,0.28401143,78991.0,78948.0,0.28727931]
[1769882713125,0.41065221,78991.0,78948.0,0.28727931]
[1769882713517,0.41065221,78991.0,78950.0,0.28727931]
[1769882713709,0.09136,78992.0,78954.0,0.28727931]
[1769882713909,0.09136,78998.0,78956.0,0.28727931]
[1769882714117,0.09136,78998.0,78958.0,0.28727931]
[1769882714416,0.12663116,78997.0,78962.0,0.28727931]
[1769882714624,0.09136,78998.0,78962.0,0.28727931]
[1769882715010,0.09136,78998.0,78962.0,0.28717931]
[1769882715416,0.012673,79029.0,78963.0,0.12661753]
[1769882715621,0.28401143,79027.0,78963.0,0.12661753]
[1769882715821,0.12661433,79024.0,78959.0,0.3342]
[1769882716125,0.28401143,79025.0,78962.0,0.001]
[1769882716317,0.12661433,79024.0,78981.0,0.01268]
[1769882716517,0.28401143,79023.0,78982.0,0.42552]
[1769882716713,0.063372,79021.0,78963.0,0.09132]
[1769882716922,0.28401143,79023.0,78963.0,0.09132]
[1769882716923,0.012677,79000.0,78963.0,0.09132]
[1769882717222,0.103997,79000.0,78963.0,0.09132]
[1769882717617,0.12661192,78999.0,78963.0,0.09132]
[1769882717927,0.29668943,78998.0,78963.0,0.09132]
[1769882718521,0.28401143,78994.0,78963.0,0.09132]
[1769882719020,0.33416,79005.0,78963.0,0.09132]
[1769882719021,0.28401143,79017.0,78971.0,0.28727931]
[1769882719221,0.28401143,79028.0,78986.0,0.28727931]
[1769882719428,0.12661353,79019.0,78989.0,0.012679]
[1769882719723,0.28401143,79028.0,78998.0,0.012678]
[1769882720021,0.12659189,79027.0,78993.0,0.012678]
[1769882720226,0.28401143,79026.0,78987.0,0.09132]
[1769882720627,0.28401143,79026.0,78988.0,0.012679]
[1769882720824,0.12656625,79025.0,78988.0,0.012679]
[1769882721123,0.09132,79029.0,78998.0,0.012678]
[1769882721317,0.09132,79029.0,79003.0,0.012677]
[1769882722027,0.09132,79029.0,79003.0,0.29995631]
[1769882723226,0.01267,79048.0,79007.0,0.28727931]
[1769882723227,0.28401143,79048.0,79007.0,0.28727931]
[1769882723424,0.28401143,79048.0,79009.0,0.28727931]
[1769882723626,0.12655664,79047.0,79009.0,0.28727931]
[1769882723931,0.28401143,79057.0,79013.0,0.28727931]
[1769882724125,0.28396143,79057.0,79013.0,0.28727931]
[1769882724425,0.28396143,79057.0,79021.0,0.28727931]
[1769882724626,0.28396143,79057.0,79023.0,0.28727931]
[1769882724827,0.12652622,79056.0,79023.0,0.28717931]
[1769882725029,0.28401143,79049.0,79022.0,0.09128]
[1769882725225,0.09132,79058.0,78995.0,0.01257489]
[1769882725226,0.29668143,79047.0,78995.0,0.01257489]
[1769882725421,0.012674,79021.0,78973.0,0.09128]
[1769882725624,0.28401143,79011.0,78973.0,0.09128]
[1769882725832,0.28401143,79009.0,78973.0,0.09128]
[1769882726023,0.28401143,79006.0,78973.0,0.09128]
[1769882726329,0.09128,79010.0,78955.0,0.09128]
[1769882726330,0.28401143,78995.0,78955.0,0.09128]
[1769882726629,0.28401143,78990.0,78955.0,0.09128]
[1769882726834,0.28401143,78983.0,78937.0,0.09128]
[1769882727031,0.28401143,78975.0,78937.0,0.09128]
[1769882727223,0.42535867,78974.0,78937.0,0.09128]
[1769882727424,0.12675777,78974.0,78937.0,0.09128]
[1769882727626,0.12675777,78974.0,78938.0,0.28727931]
[1769882727831,0.00015867,78974.0,78938.0,0.28727931]
[1769882728031,0.12665281,78973.0,78937.0,0.09128]
[1769882728233,0.12665281,78973.0,78927.0,0.29996831]
[1769882728533,0.12665281,78973.0,78924.0,0.33392]
[1769882728729,0.01284067,78972.0,78924.0,0.33392]
[1769882728932,0.012683,78966.0,78922.0,0.09128]
[1769882729233,0.2841585,78965.0,78922.0,0.09128]
[1769882729424,0.28401143,78964.0,78922.0,0.09128]
[1769882729624,0.28401143,78962.0,78922.0,0.09128]
[1769882729823,0.28401143,78960.0,78922.0,0.09128]
[1769882730024,0.28401143,78958.0,78922.0,0.09128]
[1769882730421,0.00011513,78959.0,78923.0,0.28727931]
[1769882730625,0.00011513,78959.0,78925.0,0.28727931]
[1769882730827,0.00011513,78959.0,78922.0,0.09128]
[1769882730828,0.28401143,78957.0,78922.0,0.09128]
[1769882731027,0.28401143,78957.0,78922.0,0.37855931]
[1769882731428,0.12667848,78956.0,78925.0,0.28727931]
[1769882731633,0.23052848,78956.0,78925.0,0.28727931]
[1769882731831,0.23052848,78956.0,78923.0,0.12667848]
[1769882731832,0.10385,78956.0,78931.0,0.28727931]
[1769882732031,0.10385,78956.0,78923.0,0.01269]
[1769882732228,0.41069072,78955.0,78922.0,0.09128]
[1769882732737,0.28401143,78954.0,78922.0,0.09128]
[1769882732927,0.12667929,78955.0,78923.0,0.28727931]
[1769882733130,0.10385,78956.0,78925.0,0.28727931]
[1769882733327,0.10385,78956.0,78928.0,0.28727931]
[1769882734738,0.38786143,78956.0,78925.0,0.001]
[1769882734931,0.28401143,78954.0,78925.0,0.001]
[1769882735133,0.28401143,78954.0,78922.0,0.09128]
[1769882735334,0.10385,78956.0,78928.0,0.001]
[1769882735638,0.28401143,78955.0,78928.0,0.001]
[1769882736031,0.26201143,78955.0,78928.0,0.001]
[1769882736632,0.10385,78956.0,78928.0,0.001]
[1769882736837,0.10385,78956.0,78928.0,0.28727931]
[1769882738435,0.10385,78956.0,78922.0,0.09128]
[1769882738436,0.27994381,78954.0,78922.0,0.09128]
[1769882738735,0.33419607,78953.0,78923.0,0.27515609]
[1769882738938,0.00015607,78953.0,78926.0,0.012689]
[1769882739135,0.00015607,78953.0,78928.0,0.27515609]
[1769882739432,0.00015607,78953.0,78927.0,0.27515609]
[1769882739637,0.00015607,78953.0,78930.0,0.27515609]
[1769882739838,0.00015607,78953.0,78924.0,0.33404]
[1769882739839,0.00015607,78953.0,78933.0,0.27515609]
[1769882740041,0.33404,78975.0,78928.0,0.001]
[1769882740042,0.09132,78970.0,78938.0,0.27515609]
[1769882740339,0.09132,78973.0,78946.0,0.27515609]
[1769882740535,0.27994381,78985.0,78948.0,0.27515609]
[1769882740738,0.12665602,78982.0,78950.0,0.28784109]
[1769882740940,0.09132,78984.0,78950.0,0.28784109]
[1769882741334,0.27994381,78983.0,78942.0,0.346727]
[1769882741536,0.27994381,78983.0,78947.0,0.012686]
[1769882741834,0.28283477,78981.0,78939.0,0.09132]
[1769882742544,0.28283477,78979.0,78939.0,0.104007]
[1769882742742,0.012682,78974.0,78927.0,0.012689]
[1769882742931,0.012682,78972.0,78927.0,0.012689]
[1769882743140,0.28283477,78971.0,78950.0,0.001]
[1769882743437,0.28283477,78969.0,78927.0,0.012689]
[1769882744040,0.28283477,78969.0,78937.0,0.2972724]
[1769882744344,0.1266456,78968.0,78941.0,0.2972724]
[1769882744535,0.09132,78970.0,78945.0,0.2972714]
[1769882744732,0.28283477,78968.0,78933.0,0.012688]
[1769882744940,0.28283477,78968.0,78932.0,0.09132]
[1769882745340,0.28283477,78966.0,78932.0,0.09132]
[1769882745742,0.09132,78970.0,78933.0,0.2845854]
[1769882745942,0.12666244,78965.0,78940.0,0.012687]
[1769882746147,0.09132,78970.0,78932.0,0.09132]
[1769882746148,0.09132,78970.0,78945.0,0.2972714]
[1769882746445,0.09232,78970.0,78949.0,0.2845854]
[1769882746642,0.09232,78970.0,78950.0,0.2972704]
[1769882747241,0.09132,78970.0,78946.0,0.09132]
[1769882747544,0.10383,78973.0,78956.0,0.2845854]
[1769882747745,0.09132,78991.0,78958.0,0.2845854]
[1769882747947,0.09132,78991.0,78965.0,0.012683]
[1769882748249,0.09132,78992.0,78961.0,0.2845854]
[1769882749143,0.37415477,78992.0,78960.0,0.09132]
[1769882749343,0.28283477,78991.0,78960.0,0.09132]
[1769882750952,0.28283477,78989.0,78960.0,0.09132]
[1769882751763,0.10381,78988.0,78960.0,0.09132]
[1769882752053,0.10381,78988.0,78963.0,0.2845854]
[1769882753159,0.09181,78988.0,78963.0,0.2845854]
[1769882754561,0.09181,78988.0,78963.0,0.001]
[1769882755162,0.37464477,78988.0,78963.0,0.001]
[1769882755363,0.28283477,78987.0,78960.0,0.09132]
[1769882755559,0.09181,78988.0,78964.0,0.2845854]
[1769882755759,0.09181,78988.0,78960.0,0.09132]
[1769882755760,0.09181,78988.0,78967.0,0.2845854]
[1769882755959,0.09181,78988.0,78969.0,0.2845854]
[1769882756561,0.09181,78988.0,78961.0,0.22565174]
[1769882756562,0.28283477,79018.0,78979.0,0.2972664]
[1769882756755,0.28283477,79016.0,78981.0,0.2845854]
[1769882756963,0.28283477,79014.0,78981.0,0.2845854]
[1769882757357,0.28283477,79014.0,78980.0,0.09128]
[1769882757358,0.09128,79017.0,78984.0,0.2845854]
[1769882757758,0.28283477,79016.0,78984.0,0.2845854]
[1769882758054,0.28283477,79015.0,78980.0,0.09128]
[1769882758663,0.46054628,79014.0,78980.0,0.09128]
[1769882758960,0.28283477,79013.0,78980.0,0.09128]
[1769882759161,0.33396,79014.0,78980.0,0.09128]
[1769882759162,0.28283477,79008.0,78980.0,0.09128]
[1769882759762,0.12659189,79007.0,78980.0,0.09128]
[1769882759960,0.28283477,79006.0,78969.0,0.1134172]
[1769882760159,0.27783477,79006.0,78969.0,0.2972674]
[1769882760563,0.23038189,79005.0,78969.0,0.2972674]
[1769882760861,0.23038189,79005.0,78969.0,0.2845854]
[1769882761066,0.012677,79004.0,78969.0,0.001]
[1769882761256,0.012678,78999.0,78969.0,0.001]
[1769882761464,0.09128,79003.0,78969.0,0.001]
[1769882761766,0.12660792,78998.0,78969.0,0.001]
[1769882762067,0.13928592,78998.0,78969.0,0.001]
[1769882762268,0.12660792,78998.0,78969.0,0.2855854]
[1769882762765,0.28283477,78997.0,78969.0,0.001]
[1769882763160,0.28283477,78995.0,78969.0,0.001]
[1769882763361,0.28283477,78987.0,78960.0,0.09128]
[1769882763964,0.09128,78986.0,78960.0,0.09128]
[1769882764167,0.09128,78986.0,78961.0,0.2845854]
[1769882764671,0.09128,78986.0,78962.0,0.2972684]
[1769882764970,0.09128,78986.0,78962.0,0.2845854]
[1769882765164,0.09019295,78986.0,78964.0,0.012683]